Cogmind - Beta 15 @@@ ROGUE MODE // 2025.09.24 @ 21:28:13 Player: Largest Loads Result: Destroyed by G-47 Trooper with Particle Gun Performance ------------- Evolutions (2) 1000 Regions Visited (3) 600 Robots Destroyed (45) 225 Value Destroyed (1249) 1249 Prototype IDs (0) 0 Alien Tech Used (0) 0 Bonus (0) 0 TOTAL SCORE: 3074 Bonus ------- None Cogmind --------- Core Integrity 0/550 Matter 36/300 Energy 99/100 System Corruption 0% Temperature Cool (27) Movement Core (400) Ox7 Location -8/Materials Parts ------- > --- POWER (2) -------- (None) > --- PROPULSION (3) --- (None) > --- UTILITY (4) ------ Large Storage Unit > --- WEAPON (2) ------- Katana > --- INVENTORY (15) --- Ion Engine Aluminum Leg Aluminum Leg Improved Light Armor Plating Improved Light Armor Plating Tractor Beam Light Cannon Peak State ------------ > --- POWER ------------ Micro Nuclear Core Micro Nuclear Core > --- PROPULSION ------- Light Treads Light Treads Light Treads > --- UTILITY ---------- Large Storage Unit Targeting Computer Improved Targeting Computer Improved Light Armor Plating > --- WEAPON ----------- Light Cannon Assault Cannon > --- INVENTORY -------- Ion Engine Light Ion Engine Aluminum Leg Aluminum Leg Improved Light Armor Plating Improved Light Armor Plating Light Assault Rifle Light Cannon Grenade Launcher Rocket Launcher Katana [Rating: 23] Favorites ----------- Power Ion Engine Engine Ion Engine Power Core Micro Nuclear Core Propulsion Light Treads Treads Light Treads Leg Aluminum Leg Utility Targeting Computer Storage Large Storage Unit Processor Targeting Computer Protection Improved Light Armor Plating Weapon Light Cannon Ballistic Gun Light Assault Rifle Ballistic Cannon Light Cannon Launcher Grenade Launcher Slashing Weapon Katana Build | -11 -10 -9 -8 ------- Run | Yrd Mat Mat Mat Slots Evolved 4 | . . 2 2 Power 1 | . . 1 . Propulsion 1 | . . . 1 Utility 2 | . . 1 1 Weapon . | . . . . Parts Attached 30 | 6 9 7 8 Power 7 | 1 1 2 3 Engine 5 | 1 1 2 1 Core 2 | . . . 2 Reactor . | . . . . Propulsion 8 | 2 4 1 1 Treads 6 | 2 2 1 1 Leg 2 | . 2 . . Wheel . | . . . . Hover . | . . . . Flight . | . . . . Utility 6 | 1 1 3 1 Device . | . . . . Storage 2 | 1 . 1 . Processor 3 | . 1 2 . Hackware . | . . . . Protection 1 | . . . 1 Artifact . | . . . . Weapon 9 | 2 3 1 3 Energy Gun . | . . . . Energy Cannon . | . . . . Ballistic Gun 3 | 2 . 1 . Ballistic Cannon 3 | . 2 . 1 Launcher 2 | . 1 . 1 Special Weapon . | . . . . Impact Weapon . | . . . . Slashing Weapon 1 | . . . 1 Piercing Weapon . | . . . . Special Melee Weapon . | . . . . Unidentified Prototypes . | . . . . Parts Lost 15 | . 1 . 14 Power 3 | . . . 3 Propulsion 3 | . . . 3 Utility 3 | . . . 3 Weapon 6 | . 1 . 5 Highest Loss Streak 14 | . 1 . 14 To Critical Strikes . | . . . . Average Backups 7 | 2 5 8 10 Power 1 | . 1 1 1 Propulsion 2 | 1 2 3 2 Utility . | . . . 2 Weapon 2 | . 1 3 4 Tool/Special . | . . . . Unused Backups 5 | . . 1 4 Power . | . . . . Propulsion 1 | . . . 1 Utility 4 | . . 1 3 Weapon . | . . . . Tool/Special . | . . . . Average Slot Usage (%) 95 | . 94 99 93 Engine 15 | . 14 21 13 Treads 23 | . 23 21 24 Leg 1 | . 4 . . Storage 11 | . 14 11 9 Processor 15 | . 10 21 17 Protection 2 | . . . 7 Ballistic Gun 7 | . 11 5 2 Ballistic Cannon 14 | . 13 16 14 Launcher 1 | . 2 . . Peak Build Rating 23 | 6 7 14 23 Average Rating 10 | 4 6 10 17 On Entrance 6 | . 6 7 14 Naked Turns . | . . . . Heaviest Build 44 | 13 16 38 44 Greatest Support 60 | 40 40 40 60 Greatest Overweight (x) 10 | . 5 1 10 Average Overweight (x) . | . . . . Largest Inventory Capacity 15 | 8 8 15 15 Average Capacity 11 | 7 8 13 15 Most Carried 12 | 5 8 12 12 Average Carried 7 | 2 5 8 10 Final Capacity 15 | 8 8 15 15 Final Carried 12 | 3 8 12 7 Class Distribution -------------------- 100% | Mutant Dominant Class ---------------- Mutant | -10/Materials Mutant | -9/Materials Mutant | -8/Materials Resources | -11 -10 -9 -8 ----------- Run | Yrd Mat Mat Mat Matter Collected 1123 | 200 265 361 297 Remotely . | . . . . Salvage Created 1261 | . 353 180 728 Parts 77 | . 29 11 37 Haulers Intercepted . | . . . . Recyclers Shooed 2 | . 1 . 1 Parts Field Recycled . | . . . . Retrieved Matter . | . . . . Parts Self-Destructed . | . . . . Prevented . | . . . . Kills | -11 -10 -9 -8 ------- Run | Yrd Mat Mat Mat Combat Hostiles Destroyed 28 | . 12 4 12 Guns 8 | . 7 . 1 Cannons 11 | . . 4 7 AOE 9 | . 5 . 4 Classes Destroyed 9 | . 5 3 1 Worker 3 | . 1 . 2 Builder 4 | . 1 . 3 Tunneler 1 | . . . 1 Recycler 3 | . . 1 2 Operator 1 | . . 1 . Watcher 5 | . 2 . 3 Swarmer 5 | . 5 . . Grunt 17 | . 7 2 8 Sentry 6 | . . 2 4 Best Kill Streak 14 | . 10 2 14 Combat Bots Only 6 | . 6 2 5 Max Kills in Single Turn 4 | . 1 1 4 Gunslinging . | . . . . Exploded 2 | . 1 . 2 Melee . | . . . . Uniques/NPCs Destroyed . | . . . . Combat | -11 -10 -9 -8 -------- Run | Yrd Mat Mat Mat Hostile Shots Fired 270 | . 89 23 158 Missed 74 | . 28 5 41 Hits 196 | . 61 18 117 Projectile 196 | . 61 18 117 Critical Strikes 10 | . . 1 9 Damage Taken 2847 | . 704 256 1887 Core 715 | . 97 61 557 Absorbed by Shields . | . . . . Regen/Repaired (Parts) 45 | . . . 45 Core Remaining (%) 81 | 100 61 84 . Volleys Fired 128 | . 55 16 57 Largest 2 | . 2 2 2 Hottest 67 | . 60 60 67 Shots Fired 236 | . 96 31 109 Gun 112 | . 81 7 24 Cannon 103 | . 6 23 74 Launcher 21 | . 9 1 11 Special . | . . . . Kinetic 215 | . 87 30 98 Thermal . | . . . . Explosive 21 | . 9 1 11 Electromagnetic . | . . . . Robot Hit Streak 12 | . 6 7 12 Robot Miss Streak 8 | . 8 1 3 Penetration Max . | . . . . Secondary Targets 3 | . 3 . . Max Gunslinging Chain 1 | . 1 . . Shots Hit Robots 140 | . 46 22 72 Core Hits 81 | . 35 7 39 Critical Kills . | . . . . Critical Parts Destroyed 1 | . . . 1 Critical Strikes 5 | . . 2 3 Destroy 1 | . . . 1 Blast 4 | . . 2 2 Melee Attacks 1 | . . . 1 Impact . | . . . . Slashing 1 | . . . 1 Piercing . | . . . . Sneak Attacks . | . . . . Combat Hostiles . | . . . . Follow-up Attacks . | . . . . Damage Inflicted 3384 | . 1042 402 1940 Guns 701 | . 443 99 159 Cannons 1382 | . 35 303 1044 Explosions 1292 | . 555 . 737 Melee . | . . . . Ramming 9 | . 9 . . Kinetic 2083 | . 478 402 1203 Thermal . | . . . . Explosive 1292 | . 555 . 737 Electromagnetic . | . . . . Impact . | . . . . Slashing . | . . . . Piercing . | . . . . Highest Corruption . | . . . . Average Corruption . | . . . . Corruption Purged . | . . . . Corruption Blocked . | . . . . Overload Shots . | . . . . Overflow Damage 31 | . 5 . 26 Projectiles 21 | . 5 . 16 Explosions 10 | . . . 10 Melee . | . . . . Knockbacks 15 | . 2 . 13 Impact . | . . . . Kinetic 13 | . 2 . 11 Secondary 2 | . . . 2 Self-Inflicted Damage 77 | . 61 . 16 Shots 2 | . 1 . 1 Rammed 1 | . 1 . . Targets Rammed 1 | . 1 . . Kicked . | . . . . Crushed . | . . . . Highest Temperature 422 | . 24 87 422 Average Temperature 114 | . 8 33 148 Received Heat Transfer 1464 | . 237 93 1134 Effects 5 | . . . 5 Shutdowns 3 | . . . 3 Matter Decay 1 | . . . 1 Short Circuit 1 | . . . 1 Siege Activations . | . . . . Martial Activations . | . . . . Shielding Activations . | . . . . Robots Disrupted . | . . . . Combat Hostiles . | . . . . Robots Corrupted . | . . . . Combat Hostiles . | . . . . Parts Fried . | . . . . Impact Corruptions . | . . . . Robots Melted . | . . . . Combat Hostiles . | . . . . Parts Melted . | . . . . Heat Transferred . | . . . . Parts Sabotaged . | . . . . Parts Stolen . | . . . . Parts Stripped . | . . . . Power Chain Reactions . | . . . . Alert | -11 -10 -9 -8 ------- Run | Yrd Mat Mat Mat Maximum Alert Level 1 | . 1 . 1 Low Security (%) 97 | 100 94 100 99 Level 1 2 | . 5 . . Level 2 . | . . . . Level 3 . | . . . . Level 4 . | . . . . Level 5 . | . . . . High Security . | . . . . Max Security . | . . . . Peak Influence 218 | . 218 33 203 Initial 1 | . . 1 . Average 36 | . 63 4 30 Influence Increases 984 | . 407 121 456 Destroy 0b10 Robot/C 560 | . 240 80 240 Destroy 0b10 Robot/NC 85 | . 20 10 55 Destroy Leader 150 | . 64 20 66 Successful Hack 5 | . . . 5 Disable Machine 75 | . 60 . 15 Destroy Structure 94 | . 23 11 60 Lose Combat Pursuer 15 | . . . 15 Influence Decreases 853 | . 401 127 325 Entered New Map 5 | . . 5 . Time Decay 698 | . 391 122 185 Lost Part 150 | . 10 . 140 Squads Dispatched 8 | . 2 2 4 Investigation 1 | . . . 1 Extermination . | . . . . Reinforcement 5 | . 2 2 1 Assault . | . . . . Garrison 2 | . . . 2 Intercept . | . . . . Searches Triggered . | . . . . Construction Impeded 1 | . . . 1 Haulers Reinforced . | . . . . Active Scanning Responses . | . . . . Cargo Convoy Interrupts . | . . . . Stealth | -11 -10 -9 -8 --------- Run | Yrd Mat Mat Mat Distress Signals 5 | . 3 2 . Communications Jammed . | . . . . Distress Signals . | . . . . Times Spotted 50 | . 23 4 23 Peak Tracking Total 5 | . 5 2 5 Tactical Retreats 1 | . . . 1 Traps | -11 -10 -9 -8 ------- Run | Yrd Mat Mat Mat Traps Triggered 1 | . . . 1 Indirectly . | . . . . Trap Hack Attempts . | . . . . Triggered . | . . . . Disarmed . | . . . . Reprogrammed . | . . . . Reused . | . . . . Traps Extracted . | . . . . Installed . | . . . . Triggered . | . . . . Machines | -11 -10 -9 -8 ---------- Run | Yrd Mat Mat Mat Machines Disabled 5 | . 4 . 1 Max in Single Turn 1 | . 1 . 1 Machines Repaired . | . . . . Machines Dismantled . | . . . . Machines Sabotaged . | . . . . Overloaded Fab Kills . | . . . . Hacking | -11 -10 -9 -8 --------- Run | Yrd Mat Mat Mat Machines Accessed 2 | . 1 . 1 Terminals 1 | . 1 . . Fabricators . | . . . . Repair Stations 1 | . . . 1 Recycling Units . | . . . . Scanalyzers . | . . . . Garrison Access . | . . . . Total Hacks 3 | . 1 . 2 Successful 3 | . 1 . 2 Failed . | . . . . Catastrophic . | . . . . Database Lockouts . | . . . . Manual . | . . . . Terminals 1 | . 1 . . Fabricators . | . . . . Repair Stations 2 | . . . 2 Recycling Units . | . . . . Scanalyzers . | . . . . Garrison Access . | . . . . Terminal Hacks 1 | . 1 . . Robot Analysis 1 | . 1 . . Fabricator Hacks . | . . . . Repair Station Hacks 2 | . . . 2 Scan Component 1 | . . . 1 Repair 1 | . . . 1 Recycling Unit Hacks . | . . . . Scanalyzer . | . . . . Garrison Access Hacks . | . . . . Unauthorized Hacks . | . . . . Terminals . | . . . . Fabricators . | . . . . Repair Stations . | . . . . Recycling Units . | . . . . Scanalyzers . | . . . . Garrison Access . | . . . . Data Cores Recovered 1 | . . 1 . Used . | . . . . Hacking Detections . | . . . . Full Trace Events . | . . . . Feedback Events . | . . . . Feedback Blocked . | . . . . Robot Schematics Acquired . | . . . . Robots Built . | . . . . Authchips . | . . . . Time . | . . . . Total Robot Build Rating . | . . . . Part Schematics Acquired . | . . . . Parts Built . | . . . . Authchips . | . . . . Time . | . . . . Total Part Build Rating . | . . . . Parts Repaired 1 | . . . 1 Time 26 | . . . 26 Parts Recycled . | . . . . Recycled Matter . | . . . . Retrieved Matter . | . . . . Retrieved Components . | . . . . Parts Scanalyzed . | . . . . Part Schematics Acquired . | . . . . Parts Damaged . | . . . . Bothacking | -11 -10 -9 -8 ------------ Run | Yrd Mat Mat Mat Used RIF Installer . | . . . . Robots Hacked . | . . . . Non-combat . | . . . . Combat . | . . . . Robot Hacks Applied . | . . . . Relay Couplers Released . | . . . . Fabnet Peak Effective % . | . . . . Robots Rewired . | . . . . Allies Hacked . | . . . . Hacks Repelled . | . . . . Allies | -11 -10 -9 -8 -------- Run | Yrd Mat Mat Mat Total Allies . | . . . . Largest Group . | . . . . Highest-Rated Group . | . . . . Highest-Rated Ally . | . . . . Total Orders . | . . . . Ally Attacks . | . . . . Total Damage . | . . . . Kills . | . . . . Allies Corrupted . | . . . . Allies Melted . | . . . . Intel | -11 -10 -9 -8 ------- Run | Yrd Mat Mat Mat Active Infowar (turns) . | . . . . Robot Analysis Total 1 | . 1 . . Derelict Logs Recovered . | . . . . Drone Launches . | . . . . Drone Recoveries . | . . . . Exploration | -11 -10 -9 -8 ------------- Run | Yrd Mat Mat Mat Turns Passed 3130 | 71 1336 887 836 Spaces Moved 1705 | 49 760 510 386 Core 36 | 19 7 . 10 Treads 1534 | 30 618 510 376 Legs 135 | . 135 . . Wheels . | . . . . Hover . | . . . . Flight . | . . . . Fastest Speed 50 | 50 120 160 160 Average Speed 158 | 117 153 160 170 Slowest Speed 550 | 160 300 240 550 Overloaded Moves . | . . . . Propulsion Burnouts . | . . . . Robots Hopped . | . . . . Potential Cave-ins . | . . . . Cave-ins Triggered . | . . . . Exploration Rate (%) 42 | 4 88 49 27 Regions Visited 3 Branch Regions . Pre-discovered Areas . | . . . . Known Exits Taken . | . . . . Unknown Exits Taken 3 | 1 1 1 . Scrap Searched . | . . . . Spaces Dug . | . . . . Terrain Destroyed 116 | . 34 9 73 Melee . | . . . . Projectile 7 | . . . 7 AOE 109 | . 34 9 66 Terrain Rammed . | . . . . Walls Destroyed . | . . . . Machines Disabled . | . . . . Actions | -11 -10 -9 -8 --------- Run | Yrd Mat Mat Mat Total 1924 | 62 845 554 463 Wait . | . . . . Move 1702 | 48 759 509 386 Hop . | . . . . Pick Up 37 | 8 12 12 5 Fast Attach 1 | 1 . . . Attach 31 | 5 9 7 10 Detach 6 | . 4 2 . Swap 4 | . . 2 2 Drop 13 | . 5 6 2 Fire 128 | . 55 16 57 Melee 1 | . . . 1 Ram . | . . . . Kick . | . . . . Crush 1 | . 1 . . Escape Stasis . | . . . . Rewire . | . . . . Trap . | . . . . Miscellaneous . | . . . . Route ------- -11/Scrapyard -10/Materials (discovered 4 exits: [*Mat x2] / [*Min] / [*Sub]) -9/Materials (discovered 3 exits: *Mat / [*Min x2]) -8/Materials (discovered 1 exit: [*Sto]) History --------- Turn | Location | Event 8 | -11/Scrapyard | Discovered new exit (range 16) 72 | -11/Scrapyard | Entered Materials 316 | -10/Materials | Build established: Mutant 694 | -10/Materials | Discovered new exit (range 10) 701 | -10/Materials | Discovered new exit (range 15) 850 | -10/Materials | Discovered new exit (range 9) 960 | -10/Materials | Discovered new exit (range 12) 1408 | -10/Materials | Entered another Materials area 1408 | -9/Materials | Evolved 2 slots: Power x1, Utility x1 1536 | -9/Materials | Discovered new exit (range 12) 1982 | -9/Materials | Discovered new exit (range 7) 2053 | -9/Materials | Discovered new exit (range 8) 2295 | -9/Materials | Entered another Materials area 2295 | -8/Materials | Evolved 2 slots: Propulsion x1, Utility x1 2518 | -8/Materials | Repaired Lgt. Treads 2977 | -8/Materials | Discovered new exit (range 16) 3030 | -8/Materials | Garrison activated, responded to threat 3099 | -8/Materials | Core integrity fell below 50% 3122 | -8/Materials | Core integrity fell below 20% 3131 | -8/Materials | Destroyed by G-47 Trooper with Particle Gun Last Messages --------------- Targeting Computer destroyed. Lgt. Assault Rifle destroyed. Critical hit (Burn: +37). The unstable cave ceiling collapses. Mic. Nuclear Core destroyed. The unstable cave ceiling collapses. Critical hit (Burn: +37). R-06 Scavenger collects Particle Gun. Acquired 21 matter. Assault Cannon destroyed. Critical hit (Burn: +37). The unstable cave ceiling collapses. R-06 Scavenger collects Lgt. Nuclear Core. The unstable cave ceiling collapses. R-06 Scavenger collects Mining Laser. Critical hit (Burn: +37). The unstable cave ceiling collapses. Imp. Targeting Computer destroyed. R-06 Scavenger collects Wheel. Critical hit (Burn: +37). Map ----- +----------------------------------------------------+ | ????# # !! #????????????????????????????????? | | ????# + !! #?######?????????????????????????? | | ????# # ! ###!!!!##????????????????????????? | | ????# # ##! !#????????????????????????? | | ???## ########## #????????????????????????? | | ???# ######### ##????????????????????????? | | ???# =[ #?????????????????????????? | | ???# !%* #?????????????????????????? | | ???# != #?????????????????????????? | | ???# ########### #?????????????????????????? | | ???#######?????????# =#?????????????????????????? | | ???????????????????# [#?????????????????????????? | | ???????????????????#! ##########????????????????? | | ???????????????????# # #????????????????? | | ???????????????##### # "" #????????????????? | | ???????????????#[[ # "G #????????????????? | | ???????????????#[[ # "" #????????????????? | | ???????????????#* # #????????????????? | | ???????????????#* * # """ #????????????????? | | ???????????????#== + """ #????????????????? | | ???????????????#== # """ #????????????????? | | ???????????????##### # #??##### #?????? | | ??????????????????## #########? = ###???? | | ?????????????????##! # #;### #### ??? | | ????????????????## *%= = !< ??? | | ????????????????# !% @ % != g[= ??? | | ????????????????# g g = % ????? | | ????????????????# # ##### ## ?????? | | ????????????????## #####???? ## # ?????? | | ?????????????????# ??????????? % ??????? | | ?????????????????# "???????????? ??????? | | ?????????????????# ??????????????] # ???????? | | ?????????????????# ??????????????? ? ???????? | | ?????????????????# ?????????????????# ? ???????? | | ?????????????????# ??????????????????? ????????? | | ?????????????????# ?????????????????????????????? | | ?????????????????# ??????????????????????????????? | | ?????????????????????????????????????????????????? | | ?????????????????????????????????????????????????? | | ?????????????????????????????????????????????????? | | ?????????????????????????????????????????????????? | | ?????????????????????????????????????????????????? | | ?????????????????????????????????????????????????? | | ?????????????????????????????????????????????????? | | ?????????????????????????????????????????????????? | | ?????????????????????????????????????????????????? | | ?????????????????????????????????????????????????? | | ?????????????????????????????????????????????????? | | ?????????????????????????????????????????????????? | | ?????????????????????????????????????????????????? | +----------------------------------------------------+ Best States ------------- Heat Dissipation 31 Energy Generation 25 Energy Capacity 415 Matter Stores 300 Matter Capacity 300 Sight Range 16 Terrain Scan Density 10 Armor Coverage 150 Evasion (%) 55 Targeting Accuracy 11 Recoil Reduction 3 Item Schematics ----------------- None Robot Schematics ------------------ None Fabricated ------------ Nothing Repaired ---------- Lgt. Treads | 67% | -8/Materials Alien Tech Used ----------------- None Achievements -------------- None Challenges ------------ None Game ------ Seed RapidCoolingBasin Manual? 0 Play Time 00:38:11 Cumulative 3.5 hours Start 2025.05.27 @ 17:14:15 End 2025.09.24 @ 21:28:13 Sessions 5 Manual Loads 0 Difficulty Rogue Special Mode None Game No. 7 Rogue 6 Adventurer 1 Explorer 0 Win Type - Total 0 Types 0/0/0/0/0/0/0/0/0/0 Lore% 1 Gallery% 6 Achievement% 5 Wizard Run 0 Options --------- Layout 1 ASCII 0 Keyboard 0 Movement Mouse Keybinds 0 Fullscreen 1 Font 32/SmallcapsGlow Map View 50x35 Zoom Use 0% Tactical HUD 0 Map Filters NONE Filters NONE Steam 1 RUN: 4b9df4c5-7bed-48e0-92a6-6a93bd699edd